fUSD/lending_fUSD_20240708
["ID","MTS","AMOUNT","RATE_DAILY","PERIOD"]
[331525868,1720447061843,-999.0,0.00064931,120]
[331525869,1720447061880,-151.0,0.00065332,120]
[331525870,1720447061915,-218.666856,0.00065332,120]
[331525871,1720447061951,-218.666856,0.00065332,120]
[331525872,1720447061985,-262.489959,0.00065332,120]
[331525873,1720447062020,-262.489959,0.00065332,120]
[331525874,1720447062056,-999.0,0.00066027,120]
[331525875,1720447062092,-8915963.08393635,0.000666,30]
[331525876,1720447062472,-500.0,0.00049315,120]
[331525877,1720447062507,-500.0,0.00049315,120]
[331525878,1720447062546,-500.0,0.00049589,120]
[331525879,1720447062578,-500.0,0.00049589,120]
[331525880,1720447062614,-500.0,0.00049863,120]
[331525881,1720447062647,-500.0,0.00049863,120]
[331525882,1720447062683,-552.56,0.00050136,120]
[331525883,1720447062716,-500.0,0.00050136,120]
[331525884,1720447062749,-500.0,0.00050136,120]
[331525885,1720447062784,-552.56,0.0005041,120]
[331525886,1720447062817,-500.0,0.0005041,120]
[331525887,1720447062852,-500.0,0.0005041,120]
[331525888,1720447062888,-552.56,0.00050684,120]
[331525889,1720447062923,-183.890001,0.00050684,120]
[331525890,1720447062959,-552.56,0.00050958,120]
[331525891,1720447062997,-500.0,0.00051232,120]
[331525892,1720447063030,-552.56,0.00051232,120]
[331525893,1720447063068,-184.07,0.00051506,120]
[331525894,1720447063102,-552.56,0.00051506,120]
[331525895,1720447063284,-552.56,0.0005178,120]
[331525896,1720447063319,-552.56,0.00052054,120]
[331525897,1720447063352,-552.56,0.00052328,120]
[331525898,1720447063386,-552.56,0.00052602,120]
[331525899,1720447063422,-552.56,0.00052876,120]
[331525900,1720447063458,-552.56,0.0005315,120]
[331525901,1720447063497,-552.56,0.00053424,120]
[331525902,1720447063533,-552.56,0.00053698,120]
[331525903,1720447063573,-552.56,0.00053972,120]
[331525904,1720447063613,-552.56,0.00054246,120]
[331525905,1720447063650,-552.56,0.0005452,120]
[331525906,1720447063687,-552.56,0.00054794,120]
[331525907,1720447063724,-1000.0,0.00055,120]
[331525908,1720447063762,-552.56,0.00055068,120]
[331525909,1720447063804,-151.0,0.0006,120]
[331525910,1720447063839,-1000.0,0.0006,120]
[331525911,1720447063877,-151.0,0.00065332,120]
[331525912,1720447063913,-8981331.399999,0.000666,30]
[331525913,1720447065946,-355.96739221,0.00039999,31]
[331525914,1720447065988,-161.77787719,0.00041167,30]
[331525915,1720447066031,-156.19537253,0.0004142,30]
[331525916,1720447066067,-150.05450298,0.00041694,30]
[331525917,1720447066107,-166.66666666,0.00042379,30]
[331525918,1720447066146,-150.05450298,0.0004251,30]
[331525919,1720447066182,-167.84100357,0.00042683,30]
[331525920,1720447066225,-156.43409628,0.00043142,30]
[331525921,1720447066269,-156.19537253,0.00044048,30]
[331525922,1720447066308,-156.81855096,0.00044355,30]
[331525923,1720447066344,-150.05450298,0.00044457,30]
[331525924,1720447066381,-156.19537253,0.00044574,30]
[331525925,1720447066417,-156.43409628,0.0004534,30]
[331525926,1720447066454,-151.53425501,0.00045955,30]
[331525927,1720447066641,-152.68542366,0.00046394,30]
[331525928,1720447066684,-150.21301901,0.0004663,30]
[331525929,1720447066722,-156.19537253,0.0004704,30]
[331525930,1720447066758,-152.38462349,0.00047355,30]
[331525931,1720447066793,-167.9511562,0.00048083,30]
[331525932,1720447066833,-2167.88,0.00049315,120]
[331525933,1720447066868,-500.0,0.00049315,120]
[331525934,1720447066903,-500.0,0.00049315,120]
[331525935,1720447066939,-500.0,0.00049315,120]
[331525936,1720447066978,-500.0,0.00049315,120]
[331525937,1720447067017,-500.0,0.00049315,120]
[331525938,1720447067054,-500.0,0.00049315,120]
[331525939,1720447067090,-500.0,0.00049315,120]
[331525940,1720447067128,-522.37103463,0.00049315,120]
[331525941,1720447067164,-500.0,0.00049315,120]
[331525942,1720447067199,-500.0,0.00049315,120]
[331525943,1720447067234,-500.0,0.00049315,120]
[331525944,1720447067272,-500.0,0.00049315,120]
[331525945,1720447067310,-500.0,0.00049315,120]
[331525946,1720447067345,-500.0,0.00049315,120]
[331525947,1720447067383,-500.0,0.00049315,120]
[331525948,1720447067419,-500.0,0.00049315,120]
[331525949,1720447067453,-500.0,0.00049315,120]
[331525950,1720447067487,-500.0,0.00049315,120]
[331525951,1720447067525,-500.0,0.00049315,120]
[331525952,1720447067559,-500.0,0.00049315,120]
[331525953,1720447067592,-500.0,0.00049315,120]
[331525954,1720447067628,-156.19537253,0.00049377,30]
[331525955,1720447067664,-2167.88,0.00049589,120]
[331525956,1720447067700,-500.0,0.00049589,120]
[331525957,1720447067734,-500.0,0.00049589,120]
[331525958,1720447067772,-500.0,0.00049589,120]
[331525959,1720447067806,-500.0,0.00049589,120]
[331525960,1720447067839,-500.0,0.00049589,120]
[331525961,1720447067873,-500.0,0.00049589,120]
[331525962,1720447067907,-500.0,0.00049589,120]
[331525963,1720447067945,-500.0,0.00049589,120]
[331525964,1720447067982,-500.0,0.00049589,120]
[331525965,1720447068022,-500.0,0.00049589,120]
[331525966,1720447068056,-500.0,0.00049589,120]
[331525967,1720447068090,-500.0,0.00049589,120]
[331525968,1720447068123,-555.55734276,0.00049589,120]
[331525969,1720447068156,-500.0,0.00049589,120]
[331525970,1720447068190,-500.0,0.00049589,120]
[331525971,1720447068226,-500.0,0.00049589,120]
[331525972,1720447068262,-500.0,0.00049589,120]
[331525973,1720447068296,-500.0,0.00049589,120]
[331525974,1720447068329,-500.0,0.00049589,120]
[331525975,1720447068362,-500.0,0.00049589,120]
[331525976,1720447068396,-2167.88,0.00049863,120]
[331525977,1720447068432,-500.0,0.00049863,120]
[331525978,1720447068472,-500.0,0.00049863,120]
[331525979,1720447068510,-500.0,0.00049863,120]
[331525980,1720447068547,-500.0,0.00049863,120]
[331525981,1720447068583,-500.0,0.00049863,120]
[331525982,1720447068619,-500.0,0.00049863,120]
[331525983,1720447068655,-500.0,0.00049863,120]
[331525984,1720447068690,-500.0,0.00049863,120]
[331525985,1720447068726,-500.0,0.00049863,120]
[331525986,1720447068761,-500.0,0.00049863,120]
[331525987,1720447068794,-500.0,0.00049863,120]
[331525988,1720447068828,-500.0,0.00049863,120]
[331525989,1720447068860,-500.0,0.00049863,120]
[331525990,1720447068894,-293.2732481,0.00049863,120]
[331525991,1720447068927,-500.0,0.00049863,120]
[331525992,1720447068959,-500.0,0.00049863,120]
[331525993,1720447068997,-500.0,0.00049863,120]
[331525994,1720447069031,-500.0,0.00049863,120]
[331525995,1720447069068,-300.0,0.0005,30]
[331525996,1720447069105,-2167.88,0.00050136,120]
[331525997,1720447069141,-500.0,0.00050136,120]
[331525998,1720447069179,-500.0,0.00050136,120]
[331525999,1720447069218,-500.0,0.00050136,120]
[331526000,1720447069254,-500.0,0.00050136,120]
[331526001,1720447069289,-500.0,0.00050136,120]
[331526002,1720447069325,-500.0,0.00050136,120]
[331526003,1720447069362,-500.0,0.00050136,120]
[331526004,1720447069397,-500.0,0.00050136,120]
[331526005,1720447069432,-500.0,0.00050136,120]
[331526006,1720447069468,-612.6124221,0.00050136,120]
[331526007,1720447069503,-500.0,0.00050136,120]
[331526008,1720447069539,-500.0,0.00050136,120]
[331526009,1720447069573,-500.0,0.00050136,120]
[331526010,1720447069609,-500.0,0.00050136,120]
[331526011,1720447069645,-500.0,0.00050136,120]
[331526012,1720447069682,-500.0,0.00050136,120]
[331526013,1720447069718,-500.0,0.00050136,120]
[331526014,1720447069752,-152.38462349,0.00050184,60]
[331526015,1720447069789,-2167.88,0.0005041,120]
[331526016,1720447069826,-500.0,0.0005041,120]
[331526017,1720447069863,-429.49,0.0005041,120]
[331526018,1720447069898,-500.0,0.0005041,120]
[331526019,1720447069934,-500.0,0.0005041,120]
[331526020,1720447069971,-500.0,0.0005041,120]
[331526021,1720447070004,-500.0,0.0005041,120]
[331526022,1720447070039,-500.0,0.0005041,120]
[331526023,1720447070072,-500.0,0.0005041,120]
[331526024,1720447070105,-500.0,0.0005041,120]
[331526025,1720447070138,-500.0,0.0005041,120]
[331526026,1720447070172,-500.0,0.0005041,120]
[331526027,1720447070206,-500.0,0.0005041,120]
[331526028,1720447070239,-500.0,0.0005041,120]
[331526029,1720447070289,-500.0,0.0005041,120]
[331526030,1720447070328,-500.0,0.0005041,120]
[331526031,1720447070557,-500.0,0.00050684,120]
[331526032,1720447070593,-2167.88,0.00050684,120]
[331526033,1720447070628,-500.0,0.00050684,120]
[331526034,1720447070664,-500.0,0.00050684,120]
[331526035,1720447070702,-500.0,0.00050684,120]
[331526036,1720447070740,-500.0,0.00050684,120]
[331526037,1720447070776,-500.0,0.00050684,120]
[331526038,1720447070810,-500.0,0.00050684,120]
[331526039,1720447070842,-500.0,0.00050684,120]
[331526040,1720447070875,-500.0,0.00050684,120]
[331526041,1720447070908,-500.0,0.00050684,120]
[331526042,1720447070943,-500.0,0.00050684,120]
[331526043,1720447070978,-500.0,0.00050684,120]
[331526044,1720447071014,-500.0,0.00050684,120]
[331526045,1720447071050,-500.0,0.00050684,120]
[331526046,1720447071084,-500.0,0.00050684,120]
[331526047,1720447071120,-156.19537253,0.00050748,60]
[331526048,1720447071155,-150.05450298,0.00050886,60]
[331526049,1720447071195,-503.85327062,0.00050958,120]
[331526050,1720447071231,-2167.88,0.00050958,120]
[331526051,1720447071270,-502.55822733,0.00050958,120]
[331526052,1720447071305,-500.0,0.00050958,120]
[331526053,1720447071339,-500.0,0.00050958,120]
[331526054,1720447071373,-500.0,0.00050958,120]
[331526055,1720447071407,-504.05845682,0.00050958,120]
[331526056,1720447071440,-500.0,0.00050958,120]
[331526057,1720447071471,-500.0,0.00050958,120]
[331526058,1720447071505,-500.0,0.00050958,120]
[331526059,1720447071536,-500.0,0.00050958,120]
[331526060,1720447071567,-500.0,0.00050958,120]
[331526061,1720447071599,-501.11683689,0.00050958,120]
[331526062,1720447071631,-500.0,0.00050958,120]
[331526063,1720447071665,-500.0,0.00050958,120]
[331526064,1720447071702,-2167.88,0.00051232,120]
[331526065,1720447071735,-500.0,0.00051232,120]
[331526066,1720447071771,-502.58897863,0.00051232,120]
[331526067,1720447071805,-500.0,0.00051232,120]
[331526068,1720447071837,-500.0,0.00051232,120]
[331526069,1720447071869,-500.0,0.00051232,120]
[331526070,1720447071901,-502.32302689,0.00051232,120]
[331526071,1720447071932,-500.0,0.00051232,120]
[331526072,1720447071965,-500.0,0.00051232,120]
[331526073,1720447072001,-500.0,0.00051232,120]
[331526074,1720447072035,-500.0,0.00051232,120]
[331526075,1720447072073,-2167.88,0.00051506,120]
[331526076,1720447072108,-500.0,0.00051506,120]
[331526077,1720447072143,-500.0,0.00051506,120]
[331526078,1720447072177,-500.0,0.00051506,120]
[331526079,1720447072212,-500.0,0.00051506,120]
[331526080,1720447072249,-500.0,0.00051506,120]
[331526081,1720447072284,-500.0,0.00051506,120]
[331526082,1720447072320,-500.0,0.00051506,120]
[331526083,1720447072355,-500.0,0.00051506,120]
[331526084,1720447072392,-2167.88,0.0005178,120]
[331526085,1720447072428,-500.0,0.0005178,120]
[331526086,1720447072465,-500.0,0.0005178,120]
[331526087,1720447072507,-500.0,0.0005178,120]
[331526088,1720447072543,-500.0,0.0005178,120]
[331526089,1720447072579,-500.0,0.0005178,120]
[331526090,1720447072615,-189.15,0.0005178,120]
[331526091,1720447072651,-579.30327084,0.0005178,120]
[331526092,1720447072688,-500.0,0.0005178,120]
[331526093,1720447072728,-2167.88,0.00052054,120]
[331526094,1720447072769,-500.0,0.00052054,120]
[331526095,1720447072805,-500.0,0.00052054,120]
[331526096,1720447072840,-500.0,0.00052054,120]
[331526097,1720447072875,-151.0,0.00052054,120]
[331526098,1720447072912,-500.0,0.00052054,120]
[331526099,1720447072948,-182.7880691,0.00052054,120]
[331526100,1720447072985,-500.0,0.00052054,120]
[331526101,1720447073022,-2167.88,0.00052328,120]
[331526102,1720447073058,-500.0,0.00052328,120]
[331526103,1720447073093,-500.0,0.00052328,120]
[331526104,1720447073128,-195.99,0.00052328,120]
[331526105,1720447073163,-500.0,0.00052328,120]
[331526106,1720447073202,-500.0,0.00052328,120]
[331526107,1720447073241,-2167.88,0.00052602,120]
[331526108,1720447073280,-500.0,0.00052602,120]
[331526109,1720447073318,-500.0,0.00052602,120]
[331526110,1720447073353,-500.0,0.00052602,120]
[331526111,1720447073391,-300.0,0.00052602,30]
[331526112,1720447073432,-500.0,0.00052602,120]
[331526113,1720447073470,-184.39502396,0.00052792,60]
[331526114,1720447073510,-2167.88,0.00052876,120]
[331526115,1720447073548,-500.0,0.00052876,120]
[331526116,1720447073590,-500.0,0.00052876,120]
[331526117,1720447073630,-500.0,0.00052876,120]
[331526118,1720447073670,-500.0,0.00052876,120]
[331526119,1720447073709,-2167.88,0.0005315,120]
[331526120,1720447073750,-254.99,0.0005315,120]
[331526121,1720447073787,-500.0,0.0005315,120]
[331526122,1720447073823,-500.0,0.0005315,120]
[331526123,1720447073862,-500.0,0.0005315,120]
[331526124,1720447073902,-2167.88,0.00053424,120]
[331526125,1720447073940,-500.0,0.00053424,120]
[331526126,1720447073978,-500.0,0.00053424,120]
[331526127,1720447074015,-500.0,0.00053424,120]
[331526128,1720447074053,-2167.88,0.00053698,120]
[331526129,1720447074089,-383.08,0.00053698,120]
[331526130,1720447074132,-500.0,0.00053698,120]
[331526131,1720447074172,-423.97472581,0.00053698,120]
[331526132,1720447074222,-154.68979614,0.00053965,60]
[331526133,1720447074265,-2167.88,0.00053972,120]
[331526134,1720447074304,-500.0,0.00053972,120]
[331526135,1720447074527,-2167.88,0.00054246,120]
[331526136,1720447074566,-500.0,0.00054246,120]
[331526137,1720447074604,-184.39502396,0.00054351,60]
[331526138,1720447074641,-2167.88,0.0005452,120]
[331526139,1720447074679,-185.58750828,0.0005452,120]
[331526140,1720447074716,-2167.88,0.00054794,120]
[331526141,1720447074755,-2167.88,0.00055068,120]
[331526142,1720447074792,-150.21301901,0.00055293,120]
[331526143,1720447074830,-552.56,0.00055342,120]
[331526144,1720447074866,-2167.88,0.00055342,120]
[331526145,1720447074903,-552.68,0.00055616,120]
[331526146,1720447074940,-2168.02376243,0.00055616,120]
[331526147,1720447074979,-151.53425501,0.00056609,120]
[331526148,1720447075016,-156.19537253,0.00056624,120]
[331526149,1720447075054,-184.39502396,0.0005721,120]
[331526150,1720447075092,-156.19537253,0.00058832,120]
[331526151,1720447075128,-407.00000099,0.00058986,120]
[331526152,1720447075169,-151.0,0.0006,120]
[331526153,1720447075207,-1390000.0,0.0006,120]
[331526154,1720447075248,-500.0,0.00060273,120]
[331526155,1720447075287,-500.0,0.0006041,120]
[331526156,1720447075327,-500.0,0.00060547,120]
[331526157,1720447075384,-500.0,0.00060684,120]
[331526158,1720447075424,-500.0,0.00060821,120]
[331526159,1720447075463,-500.0,0.00060958,120]
[331526160,1720447075502,-500.0,0.00061095,120]
[331526161,1720447075543,-500.0,0.00061232,120]
[331526162,1720447075586,-500.0,0.00061369,120]
[331526163,1720447075628,-151.0,0.00061434,120]
[331526164,1720447075667,-500.0,0.00061506,120]
[331526165,1720447075706,-500.0,0.00061643,120]
[331526166,1720447075745,-500.0,0.0006178,120]
[331526167,1720447075792,-500.0,0.00061917,120]
[331526168,1720447075835,-390.06245532,0.00062054,120]
[331526169,1720447075877,-151.0,0.00065332,120]
[331526170,1720447075916,-589.0,0.00066,120]
[331526171,1720447075955,-7455342.27144425,0.000666,30]
[331526172,1720447076468,-500.0,0.00049315,120]
[331526173,1720447076506,-500.0,0.00049315,120]
[331526174,1720447076544,-500.0,0.00049315,120]
[331526175,1720447076584,-500.0,0.00049589,120]
[331526176,1720447076623,-500.0,0.00049589,120]
[331526177,1720447076662,-500.0,0.00049863,120]
[331526178,1720447076700,-500.0,0.00049863,120]
[331526179,1720447076738,-2517.618,0.00049863,30]
[331526180,1720447076776,-500.0,0.00050136,120]
[331526181,1720447076812,-502.34231354,0.00050136,120]
[331526182,1720447076847,-150.0,0.00050136,30]
[331526183,1720447076884,-500.0,0.0005041,120]
[331526184,1720447076919,-500.0,0.0005041,120]
[331526185,1720447076958,-500.0,0.00050684,120]
[331526186,1720447076994,-500.0,0.00050684,120]
[331526187,1720447077030,-500.0,0.00050958,120]
[331526188,1720447077065,-500.0,0.00050958,120]
[331526189,1720447077100,-500.0,0.00051232,120]
[331526190,1720447077135,-500.0,0.00051232,120]
[331526191,1720447077170,-504.44935182,0.00051506,120]
[331526192,1720447077205,-500.0,0.00051506,120]
[331526193,1720447077242,-500.0,0.0005178,120]
[331526194,1720447077279,-500.0,0.00052054,120]
[331526195,1720447077317,-500.0,0.00052328,120]
[331526196,1720447077355,-500.0,0.00052602,120]
[331526197,1720447077393,-1106.62085526,0.000528,120]
[331526198,1720447077430,-500.0,0.00052876,120]
[331526199,1720447077465,-500.0,0.0005315,120]
[331526200,1720447077500,-500.0,0.00053424,120]
[331526201,1720447077534,-500.0,0.00053698,120]
[331526202,1720447077589,-8982718.96947938,0.000666,30]
[331526203,1720447091967,-500.0,0.00049315,120]
[331526204,1720447092002,-500.0,0.00049315,120]
[331526205,1720447092038,-500.0,0.00049315,120]
[331526206,1720447092072,-500.0,0.00049315,120]
[331526207,1720447092106,-500.0,0.00049315,120]
[331526208,1720447092140,-500.0,0.00049315,120]
[331526209,1720447092174,-669.92,0.00049315,120]
[331526210,1720447092208,-500.0,0.00049315,120]
[331526211,1720447092244,-500.0,0.00049589,120]
[331526212,1720447092280,-500.0,0.00049589,120]
[331526213,1720447092318,-500.0,0.00049589,120]
[331526214,1720447092351,-500.0,0.00049589,120]
[331526215,1720447092383,-500.0,0.00049589,120]
[331526216,1720447092418,-500.0,0.00049589,120]
[331526217,1720447092450,-669.92,0.00049589,120]
[331526218,1720447092483,-500.0,0.00049589,120]
[331526219,1720447092517,-500.0,0.00049863,120]
[331526220,1720447092552,-500.0,0.00049863,120]
[331526221,1720447092585,-500.0,0.00049863,120]
[331526222,1720447092619,-500.0,0.00049863,120]
[331526223,1720447092654,-500.0,0.00049863,120]
[331526224,1720447092688,-500.0,0.00049863,120]
[331526225,1720447092724,-669.92,0.00049863,120]
[331526226,1720447092758,-500.0,0.00049863,120]
[331526227,1720447092797,-500.0,0.00050136,120]
[331526228,1720447092831,-500.0,0.00050136,120]
[331526229,1720447092866,-500.0,0.00050136,120]
[331526230,1720447092901,-500.0,0.00050136,120]
[331526231,1720447092939,-500.0,0.00050136,120]
[331526232,1720447092977,-500.0,0.00050136,120]
[331526233,1720447093012,-669.92,0.00050136,120]
[331526234,1720447093050,-500.0,0.00050136,120]
[331526235,1720447093084,-528.8,0.00050365,120]
[331526236,1720447093118,-528.8,0.00050365,120]
[331526237,1720447093152,-500.0,0.0005041,120]
[331526238,1720447093185,-500.0,0.0005041,120]
[331526239,1720447093219,-500.0,0.0005041,120]
[331526240,1720447093253,-500.0,0.0005041,120]
[331526241,1720447093289,-500.0,0.0005041,120]
[331526242,1720447093323,-500.0,0.0005041,120]
[331526243,1720447093358,-669.92,0.0005041,120]
[331526244,1720447093392,-500.0,0.0005041,120]
[331526245,1720447093430,-500.0,0.00050684,120]
[331526246,1720447093468,-500.0,0.00050684,120]
[331526247,1720447093506,-500.0,0.00050684,120]
[331526248,1720447093545,-500.0,0.00050684,120]
[331526249,1720447093584,-500.0,0.00050684,120]
[331526250,1720447093623,-500.0,0.00050684,120]
[331526251,1720447093661,-669.92,0.00050684,120]
[331526252,1720447093699,-500.0,0.00050684,120]
[331526253,1720447093739,-500.0,0.00050958,120]
[331526254,1720447093778,-511.85207968,0.00050958,120]
[331526255,1720447093818,-500.0,0.00050958,120]
[331526256,1720447093855,-500.0,0.00050958,120]
[331526257,1720447093892,-509.73363584,0.00050958,120]
[331526258,1720447093930,-500.0,0.00050958,120]
[331526259,1720447093968,-669.92,0.00050958,120]
[331526260,1720447094004,-500.0,0.00050958,120]
[331526261,1720447094043,-418.39683778,0.00051232,120]
[331526262,1720447094078,-500.0,0.00051232,120]
[331526263,1720447094114,-500.0,0.00051232,120]
[331526264,1720447094150,-500.0,0.00051232,120]
[331526265,1720447094188,-669.92,0.00051232,120]
[331526266,1720447094230,-500.0,0.00051232,120]
[331526267,1720447094270,-500.0,0.00051506,120]
[331526268,1720447094311,-500.0,0.00051506,120]
[331526269,1720447094348,-500.0,0.00051506,120]
[331526270,1720447094386,-669.92,0.00051506,120]
[331526271,1720447094423,-500.0,0.00051506,120]
[331526272,1720447094462,-500.0,0.0005178,120]
[331526273,1720447094501,-500.0,0.0005178,120]
[331526274,1720447094543,-500.0,0.0005178,120]
[331526275,1720447094580,-669.92,0.0005178,120]
[331526276,1720447094618,-500.0,0.0005178,120]
[331526277,1720447094656,-151.0,0.00052054,120]
[331526278,1720447094694,-500.0,0.00052054,120]
[331526279,1720447094732,-500.0,0.00052054,120]
[331526280,1720447094768,-500.0,0.00052054,120]
[331526281,1720447095005,-669.92,0.00052054,120]
[331526282,1720447095043,-151.0,0.00052054,120]
[331526283,1720447095079,-170.405932,0.00052054,120]
[331526284,1720447095116,-500.0,0.00052054,120]
[331526285,1720447095155,-500.0,0.00052328,120]
[331526286,1720447095191,-500.0,0.00052328,120]
[331526287,1720447095230,-500.0,0.00052328,120]
[331526288,1720447095266,-669.92,0.00052328,120]
[331526289,1720447095307,-500.0,0.00052328,120]
[331526290,1720447095343,-500.0,0.00052602,120]
[331526291,1720447095378,-500.0,0.00052602,120]
[331526292,1720447095414,-180.24,0.00052602,120]
[331526293,1720447095451,-669.92,0.00052602,120]
[331526294,1720447095486,-500.0,0.00052876,120]
[331526295,1720447095520,-500.0,0.00052876,120]
[331526296,1720447095558,-669.92,0.00052876,120]
[331526297,1720447095594,-500.0,0.0005315,120]
[331526298,1720447095629,-500.0,0.0005315,120]
[331526299,1720447095664,-669.92,0.0005315,120]
[331526300,1720447095700,-500.0,0.00053424,120]
[331526301,1720447095737,-500.0,0.00053424,120]
[331526302,1720447095775,-669.92,0.00053424,120]
[331526303,1720447095818,-500.0,0.00053698,120]
[331526304,1720447095855,-500.0,0.00053698,120]
[331526305,1720447095894,-669.92,0.00053698,120]
[331526306,1720447095937,-500.0,0.00053972,120]
[331526307,1720447095975,-382.06,0.00053972,120]
[331526308,1720447096014,-500.0,0.00053972,120]
[331526309,1720447096050,-669.92,0.00053972,120]
[331526310,1720447096090,-500.0,0.00054246,120]
[331526311,1720447096127,-238.62,0.00054246,120]
[331526312,1720447096165,-669.92,0.00054246,120]
[331526313,1720447096209,-500.0,0.0005452,120]
[331526314,1720447096244,-669.92,0.0005452,120]
[331526315,1720447096287,-500.0,0.00054794,120]
[331526316,1720447096323,-669.92,0.00054794,120]
[331526317,1720447096361,-500.0,0.00055068,120]
[331526318,1720447096398,-669.92,0.00055068,120]
[331526319,1720447096434,-506.05,0.00055342,120]
[331526320,1720447096469,-669.92,0.00055342,120]
[331526321,1720447096506,-669.9422336,0.00055616,120]
[331526322,1720447096543,-9262.91760413,0.00057471,120]
[331526323,1720447096583,-9262.91760413,0.00059471,120]
[331526324,1720447096623,-499.0,0.0006,120]
[331526325,1720447096662,-774.6520077,0.00061102,30]
[331526326,1720447096698,-151.0,0.00061434,120]
[331526327,1720447096735,-151.0,0.00061434,120]
[331526328,1720447096772,-170.405932,0.00061434,120]
[331526329,1720447096811,-9262.91760413,0.00061471,120]
[331526330,1720447096853,-9262.91760413,0.00063471,120]
[331526331,1720447096893,-9262.91760413,0.00065471,120]
[331526332,1720447096930,-400.0,0.0006657,90]
[331526333,1720447096968,-8889684.29332075,0.000666,30]
[331526334,1720447103684,-500.0,0.00049315,120]
[331526335,1720447103795,-500.0,0.00049315,120]
[331526336,1720447103905,-500.0,0.00049315,120]
[331526337,1720447104020,-500.0,0.00049315,120]
[331526338,1720447104143,-500.0,0.00049315,120]
[331526339,1720447104264,-500.0,0.00049315,120]
[331526340,1720447104384,-500.0,0.00049589,120]
[331526341,1720447104498,-500.0,0.00049589,120]
[331526342,1720447104613,-500.0,0.00049589,120]
[331526343,1720447104722,-500.0,0.00049589,120]
[331526344,1720447104826,-500.0,0.00049589,120]
[331526345,1720447104935,-500.0,0.00049863,120]
[331526346,1720447105045,-500.0,0.00049863,120]
[331526347,1720447105153,-500.0,0.00049863,120]
[331526348,1720447105261,-500.0,0.00049863,120]
[331526349,1720447105375,-500.0,0.00049863,120]
[331526350,1720447105485,-500.0,0.00050136,120]
[331526351,1720447105596,-500.0,0.00050136,120]
[331526352,1720447105703,-500.0,0.00050136,120]
[331526353,1720447105808,-500.0,0.00050136,120]
[331526354,1720447105912,-500.0,0.00050136,120]
[331526355,1720447106019,-500.0,0.0005041,120]
[331526356,1720447106123,-500.0,0.0005041,120]
[331526357,1720447106227,-500.0,0.0005041,120]
[331526358,1720447106334,-500.0,0.0005041,120]
[331526359,1720447106440,-500.0,0.0005041,120]
[331526360,1720447106546,-500.0,0.00050684,120]
[331526361,1720447106653,-500.0,0.00050684,120]
[331526362,1720447106758,-500.0,0.00050684,120]
[331526363,1720447106863,-500.0,0.00050684,120]
[331526364,1720447106969,-500.0,0.00050684,120]
[331526365,1720447107076,-500.0,0.00050958,120]
[331526366,1720447107180,-500.0,0.00050958,120]
[331526367,1720447107283,-500.0,0.00050958,120]